bitfinex/quotes_ETHUSD_20250426
["timestamp","ask_amount","ask_price","bid_price","bid_amount"]
[1745635786846,0.376,1811.6,1811.3,1.68158634]
[1745635787031,4.742,1811.4,1811.3,1.68158634]
[1745635787745,10.7367918,1811.4,1811.3,1.68158634]
[1745635789308,11.35177062,1811.4,1811.3,1.68158634]
[1745635790245,11.72777062,1811.4,1811.3,1e-08]
[1745635791420,15.14358399,1811.4,1811.3,0.56052424]
[1745635791625,15.14358399,1811.4,1810.6,6.8379]
[1745635791626,5.52272601,1810.7,1810.6,6.03]
[1745635791822,10.26672601,1810.7,1810.6,0.20206955]
[1745635792223,5.52364118,1810.4,1810.3,0.8079]
[1745635792429,5.52347449,1810.5,1810.3,1.0100864]
[1745635792814,11.04707364,1810.5,1810.3,1.0100864]
[1745635793015,5.52347449,1810.5,1810.3,1.0100864]
[1745635793212,5.52250014,1810.8,1810.3,4.0100864]
[1745635793453,4.744,1810.7,1810.4,0.40100864]
[1745635793827,4.744,1810.7,1810.5,0.20212164]
[1745635794770,5.52303103,1810.6,1810.3,0.8079]
[1745635794933,5.52343051,1810.5,1810.3,0.8079]
[1745635795245,5.52364118,1810.4,1810.3,0.8079]
[1745635795420,5.52364118,1810.4,1810.0,3.0]
[1745635795421,5.52364118,1810.4,1810.1,0.8079]
[1745635795625,5.52343051,1810.5,1810.1,0.8079]
[1745635795626,5.52347545,1810.5,1810.1,0.8079]
[1745635795826,5.52347545,1810.5,1810.2,0.20222161]
[1745635796023,5.52347545,1810.5,1810.1,0.8079]
[1745635796341,5.52347545,1810.5,1810.2,0.20222161]
[1745635796553,5.52347545,1810.5,1810.1,0.8079]
[1745635796751,11.04706622,1810.5,1810.3,0.20219204]
[1745635797061,11.04758118,1810.4,1810.2,0.20222161]
[1745635797363,10.64272863,1810.7,1810.1,0.8079]
[1745635797364,10.26895558,1810.3,1810.1,0.8079]
[1745635797547,4.745,1810.3,1810.1,0.8079]
[1745635799030,4.745,1810.3,1810.2,9.33215146]
[1745635799244,4.746,1810.6,1810.2,9.33215146]
[1745635799452,4.746,1810.6,1810.3,0.8079]
[1745635800174,10.26905449,1810.6,1810.3,0.8079]
[1745635801294,4.746,1810.6,1810.3,0.8079]
[1745635801492,10.26903342,1810.6,1810.3,0.8079]
[1745635802198,10.26903342,1810.6,1810.3,0.7579]
[1745635802859,4.746,1810.6,1810.3,0.7579]
[1745635803047,10.26913867,1810.6,1810.3,0.7579]
[1745635803248,5.52334608,1810.5,1810.3,0.7579]
[1745635803783,11.84831384,1810.6,1810.3,0.7579]
[1745635803784,11.84849961,1810.6,1810.3,0.7579]
[1745635803961,11.84848992,1810.6,1810.3,0.7579]
[1745635804290,5.52334629,1810.5,1810.3,0.7579]
[1745635804452,5.52335135,1810.5,1810.3,0.7579]
[1745635804878,5.52335135,1810.5,1810.2,3.0]
[1745635805544,5.52406666,1810.3,1810.1,0.7532]
[1745635805989,5.52425146,1810.2,1810.1,0.7532]
[1745635806190,5.52406666,1810.3,1810.1,0.7532]
[1745635806572,5.5238546,1810.4,1810.1,0.7532]
[1745635806886,12.33049706,1810.4,1810.1,0.7532]
[1745635807093,6.8065674,1810.4,1810.1,0.7532]
[1745635807293,5.5238546,1810.4,1810.1,0.7532]
[1745635807481,5.52346117,1810.5,1810.1,0.7532]
[1745635807665,5.52346117,1810.5,1810.1,6.27772119]
[1745635808010,10.69520172,1810.6,1810.1,6.2775435]
[1745635808203,5.172,1810.6,1810.2,5.52418764]
[1745635808359,4.746,1810.6,1810.2,5.52418764]
[1745635808774,4.746,1810.6,1810.4,0.8012]
[1745635809406,4.746,1810.6,1810.4,6.32477293]
[1745635810008,4.746,1810.6,1810.4,6.32483961]
[1745635810392,4.746,1810.6,1810.4,6.32468829]
[1745635810598,4.747,1810.7,1810.6,5.52289869]
[1745635811112,4.747,1810.7,1810.6,6.51717336]
[1745635811620,4.747,1810.7,1810.6,9.51717336]
[1745635812302,4.747,1810.7,1810.6,11.02122431]
[1745635812501,16.983,1811.3,1811.0,5.52175475]
[1745635812705,16.557,1811.3,1811.1,5.52150626]
[1745635812880,4.782,1811.2,1811.1,5.71270044]
[1745635815420,4.782,1811.2,1811.1,6.46720044]
[1745635816009,4.782,1811.2,1811.1,6.41720044]
[1745635816209,4.782,1811.2,1811.1,6.46174168]
[1745635818407,4.782,1811.2,1811.1,6.46191264]
[1745635822114,4.782,1811.2,1811.1,9.46191264]
[1745635823521,4.781,1811.5,1811.4,5.52042248]
[1745635823722,4.781,1811.5,1811.4,6.31532248]
[1745635823924,4.781,1811.5,1811.4,0.17992741]
[1745635824110,4.781,1811.5,1811.3,5.52077759]
[1745635824626,4.781,1811.5,1811.4,0.17885684]
[1745635825226,4.781,1811.5,1811.4,0.17886247]
[1745635825437,4.781,1811.5,1811.2,11.83693653]
[1745635825617,4.781,1811.5,1811.4,0.17886247]
[1745635825795,4.781,1811.5,1811.3,0.17889201]
[1745635826629,4.781,1811.5,1811.3,5.69978235]
[1745635829190,11.20544359,1811.5,1811.3,0.17889201]
[1745635829626,11.20544359,1811.5,1811.3,5.52088289]
[1745635829627,5.6851,1811.5,1811.3,5.52088289]
[1745635829833,5.6851,1811.5,1811.0,3.7949]
[1745635829834,5.6851,1811.5,1811.4,0.17816297]
[1745635830216,5.6851,1811.5,1811.1,8.52133711]
[1745635830400,4.781,1811.5,1811.4,0.17816297]
[1745635830600,4.781,1811.5,1811.4,5.5205918]
[1745635830799,4.781,1811.5,1811.4,5.69875477]
[1745635831930,4.781,1811.5,1811.4,5.87552244]
[1745635832534,4.781,1811.5,1811.4,8.87552244]
[1745635835028,5.2591,1811.5,1811.4,0.35493064]
[1745635835440,5.5208882,1811.4,1810.8,6.32812917]
[1745635835645,0.426,1811.2,1810.9,5.52198588]
[1745635835953,10.3025863,1811.1,1810.7,6.3284884]
[1745635836159,10.3025863,1811.1,1810.3,6.64607882]
[1745635836160,0.426,1810.9,1810.5,5.52320978]
[1745635836343,0.426,1810.9,1810.6,3.0]
[1745635836534,0.426,1810.9,1810.6,5.52288982]
[1745635836732,0.426,1810.9,1810.5,5.52318088]
[1745635837057,0.426,1810.9,1810.6,5.52298874]
[1745635837243,1.12383008,1810.9,1810.6,5.52298874]
[1745635837445,0.426,1810.9,1810.6,5.52298874]
[1745635837646,0.426,1810.9,1810.6,5.52292051]
[1745635837842,0.426,1810.9,1810.5,5.52321726]
[1745635837843,5.94818519,1810.9,1810.5,5.52320035]
[1745635838234,5.94818519,1810.9,1810.6,5.52299412]
[1745635838235,0.426,1810.9,1810.6,5.52299412]
[1745635838738,0.426,1810.9,1810.5,5.52320035]
[1745635838739,5.94817467,1810.9,1810.5,5.52315367]
[1745635838945,0.59481747,1810.8,1810.5,3.0]
[1745635839267,4.781,1810.7,1810.4,8.52347194]
[1745635839445,4.781,1810.7,1810.4,8.52343644]
[1745635839967,4.781,1810.7,1810.4,5.5234735]
[1745635840835,4.781,1810.7,1810.4,5.52343044]
[1745635841037,4.781,1810.7,1810.5,5.88611753]
[1745635841269,4.781,1810.7,1810.5,5.88604824]
[1745635841564,4.781,1810.7,1810.6,5.52303103]
[1745635841739,4.781,1810.7,1810.6,5.88673462]
[1745635843134,4.781,1810.7,1810.6,0.36370359]
[1745635843667,5.2591,1810.7,1810.6,0.36370359]
[1745635843881,10.78182601,1810.7,1810.6,0.36370359]
[1745635844174,5.2591,1810.7,1810.6,0.36366613]
[1745635844564,5.2591,1810.7,1810.3,8.52371945]
[1745635844768,0.426,1810.6,1810.4,0.36363709]
[1745635845074,1.54679348,1810.6,1810.3,8.52371945]
[1745635845365,1.54679348,1810.6,1810.4,0.36363709]
[1745635845541,5.2591,1810.7,1810.5,5.5230807]
[1745635845542,4.781,1810.7,1810.5,5.5230807]
[1745635845745,4.781,1810.7,1810.6,0.36409696]
[1745635846973,4.781,1810.7,1810.6,5.88712799]
[1745635847666,4.781,1810.7,1810.6,0.36409696]
[1745635848224,10.72983935,1810.7,1810.3,8.52379519]
[1745635848478,11.7601822,1810.7,1810.4,0.36417563]
[1745635848833,11.7601822,1810.7,1810.3,8.52379519]
[1745635849029,11.7601822,1810.7,1810.5,0.3641363]
[1745635849229,11.7601822,1810.7,1810.4,0.36417563]
[1745635849445,11.7601822,1810.7,1810.6,0.36409696]
[1745635849658,11.7601822,1810.7,1810.5,0.3641363]
[1745635849867,11.7601822,1810.7,1810.6,0.36409696]
[1745635850249,17.283159,1810.7,1810.3,8.52379519]
[1745635850440,11.7601822,1810.7,1810.6,0.36474313]
[1745635850772,11.7601822,1810.7,1810.3,8.52379519]
[1745635850773,11.7601822,1810.7,1810.3,5.52379519]
[1745635850992,1.17601822,1810.6,1810.4,0.3648218]
[1745635851149,1.17601822,1810.6,1810.3,5.52379519]
[1745635851350,1.17601822,1810.6,1810.4,0.3648218]
[1745635851541,1.17601822,1810.6,1810.3,5.52379519]
[1745635851741,1.17601822,1810.6,1810.1,3.8251]
[1745635851742,6.69921611,1810.6,1810.4,0.3648218]
[1745635852067,6.69921611,1810.6,1810.1,5.52442557]
[1745635852068,6.6192577,1810.5,1810.1,5.52442557]
[1745635852277,6.6192577,1810.5,1810.1,5.52437597]
[1745635852278,1.09592161,1810.5,1810.1,5.52437597]
[1745635852476,1.09592161,1810.5,1810.2,5.52424151]
[1745635852650,1.09592161,1810.5,1810.3,5.52386971]
[1745635852972,0.426,1810.5,1810.2,5.52414331]
[1745635853172,0.426,1810.5,1810.3,5.52393928]
[1745635853344,0.426,1810.5,1810.2,5.52398026]
[1745635854679,0.426,1810.5,1810.2,5.52406011]
[1745635855186,5.94934459,1810.5,1809.9,0.8251]
[1745635855338,6.66188087,1810.5,1810.1,5.52451426]
[1745635855659,6.66190392,1810.5,1810.1,5.52451426]
[1745635856159,6.66190392,1810.5,1810.2,0.36476557]
[1745635856473,1.13853628,1810.5,1810.1,5.52431431]
[1745635856660,1.13853628,1810.5,1810.3,0.36479369]
[1745635856864,6.66189184,1810.5,1810.2,0.36483303]
[1745635857174,1.13853628,1810.5,1810.3,5.89074694]
[1745635857374,0.426,1810.5,1810.3,0.36689158]
[1745635857585,0.426,1810.5,1810.2,5.52408787]
[1745635857743,0.426,1810.5,1810.3,0.36719231]
[1745635858487,1.17601822,1810.6,1810.3,5.89109881]
[1745635858849,1.17601822,1810.6,1810.3,0.36719231]
[1745635859166,5.5233608,1810.5,1810.3,0.36719231]
[1745635859648,5.52337626,1810.5,1810.3,0.36719231]
[1745635859843,0.66993945,1810.5,1810.1,5.52433719]
[1745635860091,0.426,1810.4,1810.1,5.52433719]
[1745635860245,5.175,1810.4,1810.2,0.36724664]
[1745635860576,5.175,1810.4,1810.2,5.52409148]
[1745635860775,4.749,1810.4,1810.3,0.36718481]
[1745635861979,4.749,1810.4,1810.1,5.5244415]
[1745635862142,4.749,1810.4,1810.2,0.36723165]
[1745635862143,10.27280617,1810.4,1810.2,0.36723165]
[1745635862342,10.27280617,1810.4,1809.9,6.33826768]
[1745635862343,11.40963549,1810.4,1809.9,6.33826768]
[1745635862540,11.40963549,1810.4,1810.0,5.8626187]
[1745635862987,5.88582932,1810.4,1810.1,5.52436007]
[1745635863158,5.88582932,1810.4,1810.2,0.33775488]
[1745635863487,5.88582932,1810.4,1810.1,5.52436007]
[1745635863775,5.88582932,1810.4,1810.2,0.33775488]
[1745635863980,5.88582932,1810.4,1810.2,5.52411017]
[1745635864186,5.88582932,1810.4,1810.3,0.33771554]
[1745635864353,5.88582932,1810.4,1810.1,5.5243651]
[1745635864556,5.88582932,1810.4,1810.2,0.33775488]
[1745635864750,5.88582932,1810.4,1810.1,5.5243585]
[1745635865086,4.749,1810.4,1810.2,5.86197146]
[1745635865281,4.749,1810.4,1810.2,0.33775488]
[1745635865584,4.749,1810.4,1810.1,5.52443634]
[1745635865783,4.749,1810.4,1810.2,0.33778486]
[1745635865970,4.749,1810.4,1810.1,5.52443634]
[1745635866165,4.749,1810.4,1810.2,0.33778486]
[1745635866371,4.749,1810.4,1810.2,5.52404208]
[1745635866570,4.749,1810.4,1810.3,0.33774552]
[1745635867289,5.88582979,1810.4,1810.2,5.52412501]
[1745635867490,4.749,1810.4,1810.3,0.33773053]
[1745635868847,4.749,1810.4,1810.2,5.5241439]
[1745635869188,4.749,1810.4,1810.3,0.33773053]
[1745635870363,4.749,1810.4,1810.1,5.52437636]
[1745635870553,4.749,1810.4,1810.2,0.33778486]
[1745635870755,4.749,1810.4,1810.1,5.52437636]
[1745635871082,4.749,1810.4,1810.2,0.33778486]
[1745635871288,5.8858279,1810.4,1810.2,0.33778486]
[1745635871496,5.8858279,1810.4,1810.2,5.52402923]
[1745635871653,4.749,1810.4,1810.3,0.33773053]
[1745635874375,4.749,1810.4,1810.3,5.86167683]
[1745635876472,4.749,1810.4,1810.3,0.33773053]
[1745635877200,4.749,1810.4,1810.2,5.52420828]
[1745635877506,4.749,1810.4,1810.3,0.3375157]
[1745635878312,5.2665,1810.4,1810.3,0.3375157]
[1745635878618,5.2665,1810.4,1810.1,5.52443309]
[1745635878919,5.2665,1810.4,1810.2,0.33755504]
[1745635879277,5.2665,1810.4,1810.1,5.52452311]
[1745635879479,5.2665,1810.4,1810.3,0.3375157]
[1745635879721,5.2665,1810.4,1810.2,0.33755504]
[1745635879946,5.2665,1810.4,1810.3,0.3375157]
[1745635880313,5.2665,1810.4,1810.2,5.52411242]
[1745635880481,4.749,1810.4,1810.3,0.3375157]
[1745635883011,4.749,1810.4,1810.0,6.30189664]
[1745635883313,4.749,1810.4,1810.1,5.86186591]
[1745635883515,4.749,1810.4,1810.1,5.8619968]
[1745635884284,4.749,1810.4,1810.1,5.86191043]
[1745635884617,4.749,1810.4,1810.1,0.33759438]
[1745635884618,5.52425146,1810.2,1810.1,0.33759438]
[1745635884919,5.95024351,1810.3,1809.6,0.7772]
[1745635884920,5.52515461,1810.0,1809.6,0.7772]
[1745635885221,5.52515461,1810.0,1809.7,5.52574521]
[1745635885222,4.712,1810.0,1809.7,5.52574521]
[1745635885379,4.712,1810.0,1809.6,9.30308375]
[1745635885586,5.138,1810.0,1809.4,0.7772]
[1745635885892,11.17681945,1810.0,1809.6,5.52605009]
[1745635886308,11.17681945,1810.0,1809.7,0.31216986]
[1745635886611,11.17681945,1810.0,1809.6,5.52605009]
[1745635886807,11.17681945,1810.0,1809.7,0.3135548]
[1745635887017,11.17681945,1810.0,1809.6,5.52605009]
[1745635887221,1.11768195,1809.9,1809.7,0.31453402]
[1745635887395,1.11768195,1809.9,1809.6,5.52605009]
[1745635887634,1.11768195,1809.9,1809.7,0.31453402]
[1745635887850,1.11768195,1809.9,1809.6,5.52605009]
[1745635888034,1.11768195,1809.9,1809.8,0.31450216]
[1745635888352,6.64287965,1809.9,1809.5,5.52633813]
[1745635888558,6.64287965,1809.9,1809.8,0.31450216]
[1745635888758,6.64287965,1809.9,1809.5,5.52633813]
[1745635888932,6.64287965,1809.9,1809.8,0.31450216]
[1745635889127,6.64287965,1809.9,1809.4,6.3037028]
[1745635889453,6.64287965,1809.9,1809.5,5.52628014]
[1745635889653,1.11768195,1809.9,1809.5,5.8409004]
[1745635889861,6.64289092,1809.9,1809.5,5.8409004]
[1745635890223,0.66428909,1809.8,1809.5,5.8409004]
[1745635890671,0.66428909,1809.8,1809.6,5.52607338]
[1745635890835,1.11768195,1809.9,1809.6,5.52607338]
[1745635891161,1.11768195,1809.9,1809.7,0.31437658]
[1745635891574,1.11768195,1809.9,1809.6,5.52607338]
[1745635891736,1.11768195,1809.9,1809.8,0.31433723]
[1745635891941,1.11768195,1809.9,1809.7,0.31437658]
[1745635892143,1.11768195,1809.9,1809.8,0.31433723]
[1745635892342,1.11768195,1809.9,1809.6,5.52607338]
[1745635892765,1.11768195,1809.9,1809.7,0.31437658]
[1745635892967,1.11768195,1809.9,1809.6,5.52607338]
[1745635893271,1.11768195,1809.9,1809.7,0.31437658]
[1745635893453,1.11768195,1809.9,1809.7,5.84015184]
[1745635893775,1.11768195,1809.9,1809.7,0.31437658]
[1745635893969,1.11768195,1809.9,1809.6,5.52594682]
[1745635894170,1.11768195,1809.9,1809.7,0.31437658]
[1745635894377,1.11768195,1809.9,1809.6,5.52594682]
[1745635894563,4.713,1810.0,1809.9,5.52516713]
[1745635894990,4.713,1810.0,1809.9,5.83946501]
[1745635896847,4.713,1810.0,1809.9,6.65966501]
[1745635897583,4.713,1810.3,1810.1,5.52429191]
[1745635897889,4.713,1810.3,1810.2,6.65964882]
[1745635898048,4.713,1810.6,1810.5,5.52322363]
[1745635898242,4.713,1810.6,1810.5,5.83829551]
[1745635898444,4.713,1810.6,1810.5,5.83840797]
[1745635899177,4.713,1810.6,1810.5,0.31507188]
[1745635899339,4.713,1810.6,1810.5,5.83840797]
[1745635899855,4.713,1810.6,1810.5,0.31507188]
[1745635900067,4.713,1810.6,1810.5,5.83840797]
[1745635901085,4.713,1810.6,1810.5,6.65860797]
[1745635901383,4.713,1810.6,1810.5,1.13527188]
[1745635901683,4.713,1810.6,1810.5,6.65860797]
[1745635904744,4.713,1810.6,1810.5,0.31507188]
[1745635905476,4.713,1810.6,1810.5,5.52333609]
[1745635905954,4.713,1810.6,1810.5,5.83825817]
[1745635910495,4.713,1810.6,1810.5,7.7907239]
[1745635911169,4.713,1810.6,1810.5,6.65455817]
[1745635911367,4.713,1810.6,1810.5,5.83825817]
[1745635916110,21.282,1810.9,1810.8,5.52242102]
[1745635916275,4.712,1810.9,1810.8,6.31472102]
[1745635916596,0.426,1811.4,1810.8,6.31472102]
[1745635916597,4.712,1811.2,1811.1,5.52125851]
[1745635917157,4.712,1811.2,1811.1,5.82745568]
[1745635917388,4.712,1811.2,1811.1,0.30619717]
[1745635917862,4.712,1811.2,1811.1,5.82770343]
[1745635918102,4.712,1811.2,1811.1,7.71713303]
[1745635918274,4.712,1811.5,1811.3,5.52078466]
[1745635918476,4.712,1811.5,1811.4,0.30608679]
[1745635918673,4.712,1811.5,1811.3,5.52069941]
[1745635918868,5.94605055,1811.6,1811.4,0.30608679]
[1745635919070,0.59460505,1811.5,1811.2,5.52104842]
[1745635919259,5.138,1811.6,1811.3,5.82699901]
[1745635919466,4.712,1811.6,1811.4,5.52053959]
[1745635920003,4.712,1811.6,1811.5,0.30604752]
[1745635920497,4.712,1811.6,1811.5,0.30610741]
[1745635920697,4.712,1811.6,1811.4,5.52044329]
[1745635920906,4.712,1811.6,1811.5,5.82639446]
[1745635923419,4.711,1811.9,1811.7,5.51943821]
[1745635923619,4.711,1811.9,1811.8,0.2983522]
[1745635925319,4.711,1811.9,1811.8,5.81772519]
[1745635925505,4.711,1811.9,1811.8,0.2983522]
[1745635926610,4.711,1811.9,1811.7,5.51965498]
[1745635926787,4.711,1811.9,1811.8,0.2983522]
[1745635927198,4.711,1811.9,1811.8,5.81772519]
[1745635927425,4.711,1811.9,1811.8,0.2983522]
[1745635927789,4.711,1811.9,1811.8,5.81772519]
[1745635928004,4.711,1811.9,1811.8,0.2983522]
[1745635928423,4.711,1811.9,1811.8,5.81772519]
[1745635929722,4.711,1811.9,1811.8,6.95144646]
[1745635929932,16.992,1812.2,1811.8,6.95144646]
[1745635929933,4.71,1812.2,1812.1,8.51845924]
[1745635930137,4.71,1812.8,1812.6,5.51670407]
[1745635930442,4.71,1812.8,1812.7,5.81251291]
[1745635931634,4.71,1813.1,1812.8,5.51629058]
[1745635931922,4.71,1813.1,1812.9,0.29556644]
[1745635932126,5.94124035,1813.2,1812.9,0.29556644]
[1745635932300,5.51622992,1812.9,1812.5,3.0]
[1745635932494,5.94184987,1813.0,1812.5,5.51693882]
[1745635932690,5.9418818,1813.0,1812.5,5.51693882]
[1745635932891,5.9418818,1813.0,1812.5,12.43737408]
[1745635933137,0.426,1813.0,1812.7,5.51650377]
[1745635933449,4.709,1813.1,1812.8,5.51617681]
[1745635933590,4.709,1813.1,1812.8,5.51608556]
[1745635933927,4.709,1813.1,1812.8,5.51621046]
[1745635935242,4.709,1813.1,1812.9,5.51578704]
[1745635935393,4.709,1813.1,1813.0,3.0]
[1745635935588,4.709,1813.1,1812.9,5.51578704]
[1745635935820,4.709,1813.1,1812.9,8.51581591]
[1745635936017,4.709,1813.1,1812.9,14.03163182]
[1745635936292,4.709,1813.1,1813.0,5.5157198]
[1745635937639,4.709,1813.1,1813.0,6.3399198]
[1745635938097,4.71,1813.5,1813.2,5.51506973]
[1745635938296,4.71,1813.5,1813.2,5.5149261]
[1745635938734,4.71,1813.5,1813.3,5.51451885]
[1745635938895,4.71,1813.5,1813.3,5.51457984]
[1745635939097,4.71,1813.5,1813.2,5.51492672]
[1745635939796,4.71,1813.5,1813.2,5.51488653]
[1745635940300,4.71,1813.5,1813.4,5.51450314]
[1745635940525,4.71,1813.5,1813.4,6.14837345]
[1745635942551,5.32607882,1813.5,1812.3,6.03]
[1745635942691,0.426,1812.8,1812.2,0.8242]
[1745635942895,0.61607882,1813.0,1811.9,6.64607882]
[1745635942896,0.426,1812.4,1811.9,0.8272]
[1745635943094,5.51937299,1811.8,1811.7,0.8272]
[1745635943291,5.51937299,1811.8,1810.6,0.2]
[1745635943292,10.22818937,1811.9,1811.3,0.8272]
[1745635943496,1.04207882,1812.0,1810.9,0.8272]
[1745635943497,5.52028705,1811.5,1810.9,0.8272]
[1745635943721,5.52162633,1811.1,1810.6,0.8272]
[1745635943950,4.709,1811.4,1810.7,0.61607882]
[1745635944167,10.22959888,1811.4,1810.7,3.61607882]
[1745635944474,4.709,1811.4,1810.7,3.61607882]
[1745635944635,4.709,1811.4,1810.8,1.18880788]
[1745635944837,5.52124962,1811.2,1810.8,0.8272]
[1745635945148,5.52143168,1811.2,1810.8,0.8272]
[1745635945922,5.52143168,1811.2,1810.9,0.14125428]
[1745635946428,5.52103892,1811.3,1811.0,0.14129729]
[1745635946631,5.52103892,1811.3,1810.8,0.8272]
[1745635946831,10.22972819,1811.4,1810.9,0.14134406]
[1745635947070,5.52089944,1811.3,1810.8,0.8272]
[1745635947273,5.52089944,1811.3,1810.9,0.14135154]
[1745635947456,5.52126686,1811.2,1810.8,0.8272]
[1745635947769,5.52126686,1811.2,1810.9,0.14135902]
[1745635948070,5.52126686,1811.2,1810.8,0.8272]
[1745635948357,5.52126686,1811.2,1810.9,0.14135902]
[1745635948776,5.52106199,1811.3,1810.8,0.8272]
[1745635948956,5.52106199,1811.3,1811.0,0.14131973]
[1745635949130,5.52106199,1811.3,1810.9,0.14135902]
[1745635949472,5.52106199,1811.3,1811.0,0.14131973]
[1745635949632,5.52106199,1811.3,1810.8,1.20992]
[1745635949966,5.5212666,1811.2,1810.9,0.14135902]
[1745635950466,5.52200305,1811.0,1810.5,3.8272]
[1745635950673,5.52192369,1811.0,1810.5,3.8272]
[1745635950975,5.52168433,1811.1,1810.5,3.8272]
[1745635951281,11.04349487,1811.1,1810.5,3.8272]
[1745635951578,5.5217856,1811.1,1810.5,3.8272]
[1745635951776,5.5217856,1811.1,1810.5,4.51413748]
[1745635952465,11.04358863,1811.1,1810.5,4.51413748]
[1745635952673,5.52182731,1811.0,1810.5,4.51413748]
[1745635953166,5.52164276,1811.1,1810.5,4.51413748]
[1745635954968,5.52150626,1811.1,1810.5,4.51413748]
[1745635955946,5.52181392,1811.0,1810.5,4.51413748]
[1745635956269,5.52168429,1811.1,1810.5,10.03746409]
[1745635956453,5.52106289,1811.3,1810.7,0.7878]
[1745635957069,5.52122296,1811.2,1810.7,0.7878]
[1745635960370,5.52099233,1811.3,1810.7,0.7878]
[1745635960371,5.52201005,1811.0,1810.7,0.7878]
[1745635960879,5.52201005,1811.0,1810.8,0.15607651]
[1745635961170,5.9476787,1811.1,1810.8,0.15607651]
[1745635961374,5.5216787,1811.1,1810.8,0.15607651]
[1745635961674,0.426,1811.3,1810.8,0.15607651]
[1745635961876,5.52091682,1811.3,1810.8,0.15607651]
[1745635962052,6.07351579,1811.2,1810.8,0.15607651]
[1745635962752,5.52162175,1811.1,1810.8,0.15607651]
[1745635963972,5.52162175,1811.1,1810.9,0.5525]
[1745635964159,5.52162175,1811.1,1810.8,0.15607651]
[1745635964359,5.52162175,1811.1,1810.7,0.7878]
[1745635964360,5.52162175,1811.1,1811.0,0.15627745]
[1745635964565,5.52181115,1811.0,1810.9,0.15631674]
[1745635964876,1.15949481,1811.1,1810.7,0.7878]
[1745635965044,5.5222372,1810.9,1810.7,0.7878]
[1745635966790,10.28196496,1811.0,1810.7,0.7878]
[1745635970195,10.28196496,1811.0,1810.5,3.61617969]
[1745635970196,5.52242163,1810.8,1810.5,4.44147969]
[1745635970397,5.52242163,1810.8,1810.5,0.8253]
[1745635970769,5.52276554,1810.7,1810.5,0.8253]
[1745635970959,5.52276554,1810.7,1810.3,6.96536971]
[1745635971375,5.52276554,1810.7,1810.3,6.96518289]
[1745635971685,5.52249547,1810.8,1810.4,5.52348984]
[1745635971893,0.426,1810.9,1810.5,6.1392903]
[1745635972088,10.28199636,1811.0,1810.6,6.3481373]
[1745635972798,4.76,1811.0,1810.7,5.52267316]
[1745635972989,10.28182395,1811.0,1810.6,6.34813105]
[1745635973373,6.45629736,1811.0,1810.6,0.8253]
[1745635973574,10.28192007,1811.0,1810.6,6.34818819]
[1745635974483,10.28192007,1811.0,1810.6,0.8253]
[1745635974798,5.52212123,1810.9,1810.6,0.8253]
[1745635975306,10.28197012,1811.0,1810.6,0.8253]
[1745635975888,10.28197012,1811.0,1810.7,0.14501912]
[1745635976081,5.52213421,1810.9,1810.7,0.14501912]
[1745635977809,10.28201586,1811.0,1810.7,0.14501912]
[1745635977979,5.52217424,1810.9,1810.7,0.14501912]
[1745635979707,10.28201277,1811.0,1810.7,0.14501912]
[1745635980524,5.94842102,1810.8,1810.7,0.14501912]
[1745635981171,5.52315252,1810.6,1810.2,6.34393834]
[1745635981393,10.28415252,1810.6,1810.2,6.34393834]
[1745635981596,10.28415252,1810.6,1810.3,0.13418211]
[1745635981896,4.761,1810.6,1810.3,5.65811122]
[1745635982112,4.761,1810.6,1810.3,0.13418211]
[1745635982332,10.28412057,1810.6,1810.3,0.13418211]
[1745635982635,5.523444,1810.5,1810.3,0.13418211]
[1745635982829,10.28422702,1810.6,1810.3,0.13418211]
[1745635983025,4.761,1810.6,1810.4,5.52360425]
[1745635983332,4.761,1810.6,1810.5,0.13559151]
[1745635983630,4.761,1810.6,1810.5,7.63841553]
[1745635984325,4.761,1810.9,1810.7,5.52270043]
[1745635984529,4.761,1810.9,1810.8,0.13543616]
[1745635984690,5.52106085,1811.3,1810.8,0.13543616]
[1745635984691,4.761,1811.3,1810.9,5.52191467]
[1745635984891,11.35283092,1811.3,1811.0,0.13535758]
[1745635985152,5.52134121,1811.2,1810.8,6.31977569]
[1745635985328,5.52134121,1811.2,1811.1,0.13292703]
[1745635985530,5.52134121,1811.2,1810.8,6.31977569]
[1745635985690,5.52134121,1811.2,1810.9,0.13300561]
[1745635985890,7.20875842,1811.2,1810.8,6.31977569]
[1745635986087,7.20875842,1811.2,1810.9,0.13300561]
[1745635986329,1.68741721,1811.2,1810.9,5.52200329]
[1745635986498,11.35283092,1811.3,1811.0,0.13296632]
[1745635986905,5.83178066,1811.3,1811.0,0.13296632]
[1745635987300,5.83178066,1811.3,1811.0,5.65472368]
[1745635987926,11.35287507,1811.3,1811.0,0.13296632]
[1745635988332,16.87406992,1811.3,1810.8,6.31965307]
[1745635988513,16.87403336,1811.3,1810.9,0.13300561]
[1745635988695,16.87403336,1811.3,1810.8,6.31965307]
[1745635988903,11.35287507,1811.3,1810.9,0.13300561]
[1745635989106,11.35287507,1811.3,1810.8,6.31965307]
[1745635989306,11.35287507,1811.3,1810.9,0.13300561]
[1745635989508,11.35287507,1811.3,1810.8,6.31959055]
[1745635989750,11.35287507,1811.3,1810.9,5.65491344]
[1745635991038,5.52181115,1811.0,1810.9,0.13300561]
[1745635991407,5.52181115,1811.0,1810.6,5.52302518]
[1745635991610,5.52181115,1811.0,1810.9,0.12113389]
[1745635991808,10.28281115,1811.0,1810.6,5.52302518]
[1745635992111,10.28281115,1811.0,1810.9,0.12114886]
[1745635992308,12.28924289,1811.0,1810.5,5.52308862]
[1745635992536,12.28924289,1811.0,1810.6,0.12125179]
[1745635992846,12.28924289,1811.0,1810.6,5.64415114]
[1745635993011,10.70881115,1811.0,1810.6,5.64415114]
[1745635993518,10.70881115,1811.0,1810.6,0.12125179]
[1745635993721,5.52233759,1810.9,1810.6,0.12125179]
[1745635993941,10.7089586,1811.0,1810.6,0.12125179]
[1745635994240,5.52223699,1810.9,1810.5,5.52319457]
[1745635994442,5.52223699,1810.9,1810.7,0.121205]
[1745635994647,10.70895621,1811.0,1810.6,5.64427156]
[1745635994833,5.187,1811.0,1810.8,0.12117318]
[1745635995034,5.187,1811.0,1810.6,5.52278434]
[1745635995035,5.187,1811.0,1810.7,0.12121249]